bitfinex/quotes_ETHUSD_20250413
["timestamp","ask_amount","ask_price","bid_price","bid_amount"]
[1744523937017,0.7671,1608.2,1608.0,6.21888]
[1744523937611,0.7671,1608.2,1607.9,6.21901]
[1744523939024,0.7671,1608.2,1607.9,13.37770817]
[1744523939906,0.7671,1608.2,1608.0,6.21883]
[1744523940086,3.47491078,1608.3,1608.1,6.21834]
[1744523940422,0.8191,1608.4,1608.2,6.21797]
[1744523940583,6.9291,1608.6,1608.3,6.21752]
[1744523941305,0.8191,1608.6,1608.3,6.21752]
[1744523942594,0.8191,1608.7,1608.4,6.21701]
[1744523942790,7.65759561,1608.8,1608.5,6.21681]
[1744523943118,0.8191,1608.7,1608.4,12.43437]
[1744523943492,0.8191,1608.7,1608.3,2.009959]
[1744523943493,0.8191,1608.7,1608.5,6.21694]
[1744523943692,7.2001,1608.8,1608.6,6.21658]
[1744523943921,6.381,1608.8,1608.6,6.21658]
[1744523944099,6.381,1608.8,1608.6,12.43296]
[1744523944311,6.381,1608.8,1608.6,6.21638]
[1744523944507,6.381,1608.8,1608.6,6.207125]
[1744523947720,6.381,1608.8,1608.6,12.423555]
[1744523948021,6.381,1608.8,1608.6,6.207125]
[1744523952528,6.381,1608.8,1608.6,13.7426185]
[1744523953206,6.381,1608.8,1608.6,7.5261685]
[1744523953407,6.381,1608.8,1608.6,6.207125]
[1744523956238,0.7794,1608.7,1608.5,6.21693]
[1744523956417,0.7794,1608.7,1608.4,12.43466]
[1744523956617,6.381,1608.8,1608.5,6.2168]
[1744523957141,7.76524971,1608.8,1608.5,6.2168]
[1744523957837,7.76524971,1608.8,1608.6,6.21656]
[1744523959343,6.381,1608.8,1608.6,6.21656]
[1744523959532,6.381,1608.8,1608.6,12.433]
[1744523960342,6.381,1608.8,1608.6,13.1997]
[1744523962250,6.381,1608.8,1608.6,6.98314]
[1744523966262,6.381,1608.8,1608.6,6.21644]
[1744523968230,7.76524271,1608.8,1608.6,6.21644]
[1744523972671,6.381,1608.8,1608.6,6.21644]
[1744523973268,7.4614271,1608.9,1608.6,6.21644]
[1744523984279,7.4614271,1608.9,1608.5,13.20232]
[1744523986380,6.21599,1608.8,1608.5,0.7685]
[1744523986591,6.21599,1608.8,1608.5,6.2169]
[1744523986876,1.2459471,1608.9,1608.6,6.21639]
[1744523987478,7.4614671,1608.9,1608.6,6.21639]
[1744523987980,0.4665471,1608.9,1608.6,12.43279]
[1744523988146,14.91164521,1609.0,1608.6,13.24019]
[1744523988352,21.12688521,1609.0,1608.6,7.02379]
[1744523989180,21.6038503,1609.0,1608.6,7.02379]
[1744523991681,6.7656,1608.9,1608.5,6.21691]
[1744523991864,0.67656,1608.8,1608.5,6.21691]
[1744523992581,6.89237,1608.8,1608.5,6.21691]
[1744523993383,0.7636,1608.7,1608.5,6.21691]
[1744523994183,6.89237,1608.8,1608.5,6.21691]
[1744523994355,7.65597,1608.8,1608.5,6.21691]
[1744523995361,0.765597,1608.7,1608.5,6.21691]
[1744523995796,7.65597,1608.8,1608.5,6.21691]
[1744523997495,13.87199,1608.8,1608.4,13.20454]
[1744523999404,13.87199,1608.8,1608.4,6.98711]
[1744523999607,6.21622,1608.7,1608.4,6.98711]
[1744523999982,8.67594521,1608.8,1608.4,13.20431]
[1744524000483,8.67594521,1608.8,1608.5,6.21695]
[1744524001009,14.89198521,1608.8,1608.4,6.9871]
[1744524001310,8.67594521,1608.8,1608.4,13.20428]
[1744524002505,14.89198521,1608.8,1608.4,13.20428]
[1744524003101,14.89198521,1608.8,1608.4,6.98708]
[1744524003415,8.67594521,1608.8,1608.4,6.98708]
[1744524003587,8.67594521,1608.8,1608.5,6.21694]
[1744524004419,14.89195521,1608.8,1608.4,6.98708]
[1744524004575,6.21621,1608.7,1608.4,6.98708]
[1744524005402,6.21621,1608.7,1608.4,13.20426]
[1744524005905,14.89209521,1608.8,1608.4,13.20426]
[1744524006070,14.89209521,1608.8,1608.4,6.98708]
[1744524006272,8.67594521,1608.8,1608.4,13.20425]
[1744524007871,8.67594521,1608.8,1608.5,6.21697]
[1744524008072,5.0,1609.2,1609.1,6.21465]
[1744524008297,0.8422,1609.4,1609.1,6.21451]
[1744524008510,0.02,1609.4,1609.2,6.2141]
[1744524009376,0.02,1609.4,1609.1,7.00351]
[1744524010006,0.02,1609.4,1609.1,13.21794]
[1744524010505,0.02,1609.4,1609.1,7.00343]
[1744524010801,2.7309991,1609.4,1609.1,7.00343]
[1744524010972,0.55,1609.2,1608.9,0.789]
[1744524011175,6.21558,1608.9,1608.6,0.789]
[1744524011376,6.21558,1608.9,1608.5,6.21676]
[1744524011377,0.8222,1608.9,1608.5,6.21676]
[1744524011609,0.8222,1608.9,1608.6,6.838076]
[1744524011902,0.8222,1608.9,1608.5,6.21676]
[1744524011903,7.03762,1608.9,1608.5,6.21676]
[1744524012269,16.39899,1609.1,1608.7,7.00498]
[1744524012499,10.1842,1609.1,1608.8,6.21559]
[1744524012799,7.1842,1609.1,1608.8,12.43125]
[1744524013003,0.8222,1609.3,1608.9,7.00419]
[1744524013204,5.163979,1609.3,1608.9,7.00419]
[1744524013401,2.163979,1609.3,1608.9,7.00419]
[1744524013595,2.163979,1609.3,1609.0,6.21489]
[1744524013793,6.382,1609.4,1608.9,0.789]
[1744524013996,6.382,1609.4,1609.2,0.7558]
[1744524014306,6.382,1609.4,1609.2,6.97]
[1744524015620,12.59555,1609.4,1609.0,6.97081]
[1744524015790,2.052655,1609.3,1609.0,6.21501]
[1744524016406,8.266555,1609.3,1609.0,6.21501]
[1744524016711,8.266555,1609.3,1608.9,13.18639]
[1744524016879,2.052655,1609.3,1609.0,6.21502]
[1744524017230,19.35942,1609.4,1609.1,6.21465]
[1744524017231,12.59555,1609.4,1609.1,6.21465]
[1744524017679,6.382,1609.4,1609.2,6.21426]
[1744524020307,6.382,1609.4,1609.1,6.97024]
[1744524020718,6.382,1609.4,1609.1,6.21444]
[1744524022513,6.382,1609.4,1609.2,6.21415]
[1744524023613,6.382,1609.4,1609.2,12.42822]
[1744524023784,6.382,1609.4,1609.2,13.20072]
[1744524025014,6.382,1609.4,1609.2,6.21407]
[1744524025223,6.382,1609.4,1609.1,6.21461]
[1744524025425,6.382,1609.4,1609.1,12.42902]
[1744524025928,0.7777,1609.3,1609.1,6.2145]
[1744524026132,7.1597,1609.4,1609.1,6.2145]
[1744524026699,7.1597,1609.4,1609.1,6.21445]
[1744524028199,6.382,1609.4,1609.1,6.21445]
[1744524029229,12.59571,1609.4,1609.0,6.98746]
[1744524029431,18.80954,1609.4,1609.0,6.98746]
[1744524029632,18.80954,1609.4,1609.0,8.307744]
[1744524030034,6.21393,1609.3,1609.0,8.307744]
[1744524030202,6.99163,1609.3,1609.0,8.307744]
[1744524030604,13.20573,1609.3,1609.0,1.320284]
[1744524030803,13.20573,1609.3,1608.9,12.43076]
[1744524031107,13.20573,1609.3,1608.8,0.7725]
[1744524031108,6.21432,1609.2,1608.8,6.98823]
[1744524031324,6.21468,1609.1,1608.8,6.98823]
[1744524031630,6.21468,1609.1,1608.6,6.98907]
[1744524031631,0.7777,1609.1,1608.6,6.98907]
[1744524031835,6.21528,1609.0,1608.6,13.20545]
[1744524032136,6.21528,1609.0,1608.6,15.13299348]
[1744524032643,6.21528,1609.0,1608.7,6.21618]
[1744524033342,6.99242,1609.1,1608.7,6.216]
[1744524033642,13.20731,1609.1,1608.7,6.216]
[1744524034007,6.99242,1609.1,1608.7,12.43201]
[1744524034234,6.21389,1609.3,1608.9,6.21509]
[1744524034440,13.34732,1609.4,1609.0,12.42998]
[1744524034748,0.02,1609.4,1609.2,6.21421]
[1744524035716,0.02,1609.4,1609.1,6.21461]
[1744524035917,0.02,1609.4,1609.1,13.128471]
[1744524036117,0.02,1609.4,1609.1,13.128381]
[1744524037174,0.02,1609.4,1609.2,6.21418]
[1744524037464,0.02,1609.4,1609.2,6.21409]
[1744524040966,0.02,1609.4,1609.1,6.913931]
[1744524041771,0.02,1609.4,1609.1,13.128371]
[1744524042572,0.02,1609.4,1609.1,6.913781]
[1744524043287,0.7789,1609.3,1609.0,0.7788]
[1744524043444,6.99297,1609.3,1608.9,6.9782]
[1744524044361,13.2071,1609.3,1608.9,6.9782]
[1744524044761,6.99297,1609.3,1608.9,13.19343]
[1744524044952,7.01242,1609.4,1609.0,6.21467]
[1744524045283,7.01242,1609.4,1609.0,12.42955]
[1744524046373,13.22613,1609.4,1609.0,6.21467]
[1744524046543,0.7989,1609.4,1609.1,6.21445]
[1744524047868,0.02,1609.4,1609.3,6.97688]
[1744524048073,0.02,1609.4,1609.3,8.295978]
[1744524048442,0.02,1609.4,1609.3,10.5042444]
[1744524048989,0.02,1609.4,1609.3,13.5042444]
[1744524049856,0.02,1609.4,1609.3,11.295978]
[1744524051072,0.02,1609.4,1609.3,8.295978]
[1744524056274,0.02,1609.4,1609.3,10.5042444]
[1744524057587,0.02,1609.4,1609.3,13.5042444]
[1744524061762,0.02,1609.4,1609.3,7.532978]
[1744524061966,0.02,1609.4,1609.3,6.21388]
[1744524068608,0.02,1609.4,1609.2,6.2141]
[1744524068810,0.8076,1609.3,1608.9,13.33528]
[1744524069104,0.8076,1609.3,1609.1,12.42881]
[1744524069605,0.8076,1609.3,1609.1,12.4288]
[1744524069907,0.8076,1609.3,1609.1,6.21435]
[1744524071926,0.8076,1609.3,1609.0,6.21491]
[1744524072224,7.72584,1609.3,1608.9,12.43055]
[1744524072587,7.72584,1609.3,1609.0,6.21503]
[1744524072979,0.8076,1609.3,1609.1,6.21463]
[1744524073207,0.8431,1609.4,1609.1,6.21444]
[1744524073504,0.8431,1609.4,1609.2,6.21411]
[1744524078824,0.02,1609.4,1609.2,6.21411]
[1744524079720,0.02,1609.4,1609.2,6.21406]
[1744524079925,0.02,1609.4,1609.3,6.21388]
[1744524080291,0.02,1609.4,1609.2,13.825786]
[1744524080490,0.02,1609.4,1609.2,6.99026]
[1744524080691,0.02,1609.4,1609.2,6.21406]
[1744524080890,0.02,1609.4,1609.1,6.99081]
[1744524081090,0.02,1609.4,1609.2,6.21425]
[1744524081288,0.02,1609.4,1609.3,6.21388]
[1744524081537,0.02,1609.4,1609.2,12.42839]
[1744524082035,0.02,1609.4,1609.2,6.21414]
[1744524083434,0.02,1609.4,1609.1,6.21465]
[1744524083604,6.23361,1609.4,1609.1,6.21465]
[1744524084236,0.02,1609.4,1609.1,12.42911]
[1744524085640,0.02,1609.4,1609.3,6.21388]
[1744524086331,0.02,1609.4,1609.2,12.42817]
[1744524086525,0.02,1609.4,1609.2,6.21403]
[1744524087959,0.02,1609.4,1609.2,12.42816]
[1744524088661,0.02,1609.4,1609.2,6.21403]
[1744524091474,0.02,1609.4,1609.1,12.4292]
[1744524091976,0.02,1609.4,1608.9,14.7666564]
[1744524091977,6.99719,1609.3,1608.9,6.21539]
[1744524092141,0.7832,1609.1,1608.8,6.2158]
[1744524093876,0.7832,1609.1,1608.8,12.43141]
[1744524094779,0.7832,1609.1,1608.9,6.21523]
[1744524095071,0.7832,1609.1,1608.9,6.21522]
[1744524095273,0.7813,1609.3,1609.1,6.2144]
[1744524095477,0.8013,1609.4,1609.2,6.21412]
[1744524096041,0.8013,1609.4,1609.1,6.2144]
[1744524096261,0.8013,1609.4,1609.1,12.42887]
[1744524096444,0.8013,1609.4,1609.1,6.2144]
[1744524096652,0.8013,1609.4,1609.1,12.42885]
[1744524096861,0.8013,1609.4,1609.1,13.59533373]
[1744524097490,0.8013,1609.4,1609.2,6.21419]
[1744524097784,0.02,1609.4,1609.3,6.21388]
[1744524100644,0.02,1609.4,1609.3,6.98668]
[1744524102949,0.02,1609.4,1609.3,6.21388]
[1744524103245,0.02,1609.4,1609.3,7.9399403]
[1744524105385,0.02,1609.4,1609.1,6.21459]
[1744524105679,0.7605,1609.3,1609.1,6.21459]
[1744524107978,6.97444,1609.3,1609.0,6.215]
[1744524108374,0.7605,1609.3,1608.7,9.1881364]
[1744524108580,0.7605,1609.3,1609.1,6.21448]
[1744524108778,0.7605,1609.3,1609.1,12.42896]
[1744524109784,0.7605,1609.3,1609.0,6.21499]
[1744524112996,8.295256,1609.3,1608.9,6.21541]
[1744524113165,13.748996,1609.3,1608.9,6.21541]
[1744524113365,0.8173,1609.2,1608.9,6.21541]
[1744524113777,0.8173,1609.2,1608.9,12.4307]
[1744524113976,0.8173,1609.2,1608.9,12.43054]
[1744524114303,0.8173,1609.2,1609.0,6.21491]
[1744524114593,0.8173,1609.2,1609.1,6.21465]
[1744524114799,0.8373,1609.4,1609.2,6.21423]
[1744524114964,1.58891764,1609.4,1609.2,6.21423]
[1744524116596,1.58891764,1609.4,1609.1,6.21444]
[1744524116780,7.80243764,1609.4,1609.1,6.21444]
[1744524117167,1.58891764,1609.4,1609.1,12.42896]
[1744524117368,0.8373,1609.4,1609.1,12.42896]
[1744524119711,7.05083,1609.4,1609.1,6.21444]
[1744524120413,0.8373,1609.4,1609.1,12.42896]
[1744524120708,0.8373,1609.4,1609.1,6.21444]
[1744524122306,0.8373,1609.4,1609.1,12.42893]
[1744524122611,0.8373,1609.4,1609.1,12.42897]
[1744524123113,0.8373,1609.4,1609.2,6.21413]
[1744524123307,0.8373,1609.4,1609.2,6.21407]
[1744524123500,0.02,1609.4,1609.3,6.21388]
[1744524125413,0.02,1609.4,1609.3,7.02728]
[1744524128233,0.02,1609.4,1609.3,6.21388]
[1744524128424,0.02,1609.4,1609.3,7.456675]
[1744524134837,0.02,1609.4,1609.2,6.21407]
[1744524134838,0.7819,1609.4,1609.2,6.21407]
[1744524135013,0.7819,1609.4,1609.1,12.42908]
[1744524135213,0.7819,1609.4,1609.2,6.21419]
[1744524136814,0.7819,1609.4,1609.3,6.21388]
[1744524139848,0.7819,1609.4,1609.2,12.42831]
[1744524141050,0.7819,1609.4,1609.2,6.21412]
[1744524141254,6.99542,1609.4,1609.1,6.2146]
[1744524141552,8.316277,1609.4,1609.1,6.2146]
[1744524142361,13.768137,1609.4,1609.0,6.21496]
[1744524142665,0.7619,1609.3,1609.0,12.42987]
[1744524143048,0.7619,1609.3,1609.1,6.2146]
[1744524143355,0.7619,1609.3,1609.1,7.457431]
[1744524144058,0.7619,1609.3,1609.2,6.21426]
[1744524144423,0.02,1609.4,1609.2,6.21412]
[1744524144931,0.02,1609.4,1609.3,6.21388]
[1744524145348,0.02,1609.4,1609.3,6.97878]
[1744524147290,0.02,1609.4,1609.3,6.21388]
[1744524147493,0.02,1609.4,1609.2,12.42816]
[1744524147689,0.02,1609.4,1609.3,6.21388]
[1744524150765,0.02,1609.4,1609.2,13.747506]
[1744524150965,0.02,1609.4,1609.2,7.533376]
[1744524151281,0.02,1609.4,1609.2,13.747456]
[1744524151478,0.02,1609.4,1609.3,6.21388]
[1744524151976,0.02,1609.4,1609.2,7.533376]
[1744524152372,0.8069,1609.4,1609.2,13.747466]
[1744524153879,0.8069,1609.4,1609.3,6.21388]
[1744524157083,0.02,1609.4,1609.3,7.5886056]
[1744524157382,0.02,1609.4,1609.3,8.3921056]
[1744524158586,0.02,1609.4,1609.3,7.5886056]
[1744524163780,0.01378612,1609.4,1609.3,8.3680056]
[1744524165489,0.01378612,1609.4,1609.3,10.576272]
[1744524165788,0.01378612,1609.4,1609.3,19.896272]
[1744524169170,0.01378612,1609.4,1609.3,17.6880056]
[1744524174767,0.01378612,1609.4,1609.3,7.5886056]
[1744524174961,0.01378612,1609.4,1609.3,6.21388]
[1744524177596,0.01378612,1609.4,1609.3,6.98368]
[1744524180499,0.01378612,1609.4,1609.3,6.21388]
[1744524182315,6.2145,1609.2,1608.8,6.21579]
[1744524182495,1.37335,1609.1,1608.9,6.21541]
[1744524182801,0.7519,1609.1,1608.9,6.21541]
[1744524183013,0.7519,1609.1,1608.8,6.21559]
[1744524183217,0.7519,1609.1,1608.9,6.21506]
[1744524183511,0.7519,1609.1,1609.0,6.21504]
[1744524184402,0.7519,1609.1,1608.9,6.21506]
[1744524184608,0.7519,1609.1,1608.8,6.21576]
[1744524184911,0.7519,1609.0,1608.7,6.21614]
[1744524185213,0.7519,1608.9,1608.7,6.21614]
[1744524185382,1.4486,1608.9,1608.7,6.21614]
[1744524185585,0.7519,1608.9,1608.7,6.21614]
[1744524186513,0.7519,1608.9,1608.6,6.21654]
[1744524186684,6.21558,1608.9,1608.5,6.21695]
[1744524186886,0.7519,1608.8,1608.5,6.21695]
[1744524187186,2.070215,1608.8,1608.5,6.21695]
[1744524187619,0.7519,1608.7,1608.4,6.21732]
[1744524188119,0.7519,1608.4,1608.1,6.2185]
[1744524188322,6.21753,1608.4,1608.0,6.21886]
[1744524188495,1.429353,1608.3,1608.0,6.21886]
[1744524188818,1.429353,1608.3,1607.7,13.62239473]
[1744524188819,0.8076,1608.1,1607.8,6.21963]
[1744524188981,6.2189,1608.0,1607.7,6.58565473]
[1744524189182,0.8076,1607.9,1607.7,6.58565473]
[1744524189788,0.8076,1607.9,1607.7,12.80562473]
[1744524189989,0.8076,1608.2,1607.7,8.4882572]
[1744524190190,0.8076,1608.2,1608.0,6.21853]
[1744524190418,0.8076,1608.2,1608.0,12.43715]
[1744524190587,0.8076,1608.2,1608.0,6.21853]
[1744524191224,0.8076,1608.2,1607.8,6.21959]
[1744524191515,7.02612,1608.1,1607.7,12.80538473]
[1744524191722,7.729262,1608.0,1607.7,6.58565473]
[1744524191918,7.729262,1608.0,1607.6,6.22043]
[1744524191919,0.8076,1607.9,1607.6,6.22043]
[1744524192441,0.8076,1607.7,1607.5,6.22065]
[1744524192599,0.8076,1607.9,1607.6,12.4407]
[1744524193504,0.8076,1607.9,1607.4,6.22098]
[1744524193723,7.02713,1607.9,1607.5,6.2208]
[1744524194040,8.2142321,1607.8,1607.4,6.22098]
[1744524194269,1.9943721,1607.8,1607.4,6.22098]
[1744524194407,1.9943721,1607.8,1607.5,6.22082]
[1744524194408,0.7543,1607.8,1607.5,6.22082]
[1744524194596,0.7543,1607.8,1607.6,6.22041]
[1744524195832,0.7543,1607.8,1607.7,6.22006]
[1744524195989,0.7543,1607.8,1607.6,6.22021]
[1744524196330,0.7543,1607.8,1607.5,6.22079]
[1744524197404,1.451659,1607.8,1607.5,6.22079]
[1744524197604,0.55,1607.7,1607.4,6.22118]
[1744524198317,7.671379,1607.8,1607.5,6.22082]
[1744524198318,1.451659,1607.8,1607.5,6.22082]
[1744524198724,1.451659,1607.8,1607.4,6.22122]
[1744524198725,7.671479,1607.8,1607.4,6.22122]
[1744524198926,0.7908,1607.6,1607.4,6.22122]
[1744524201328,0.7908,1607.6,1607.4,12.44221]
[1744524201901,0.7908,1607.8,1607.7,6.22006]
[1744524202612,6.318,1608.0,1607.9,6.21926]
[1744524202613,0.7908,1608.0,1607.9,6.21926]
[1744524202813,7.58252442,1608.2,1608.0,6.21887]
[1744524203125,8.34077686,1608.2,1608.0,6.21887]
[1744524203426,8.34077686,1608.2,1607.9,6.21926]
[1744524203427,7.86705244,1608.2,1607.9,6.21926]
[1744524203596,7.86705244,1608.2,1607.9,12.43832]
[1744524203792,7.1088,1608.2,1608.0,6.21876]
[1744524205832,7.1088,1608.2,1608.0,12.43753]
[1744524205997,7.1088,1608.2,1608.1,6.21851]
[1744524206348,7.1088,1608.2,1608.0,6.21876]
[1744524206349,7.0688,1608.5,1608.3,6.21773]
[1744524206694,7.0688,1608.5,1608.3,6.21756]
[1744524206898,0.7508,1608.7,1608.4,6.21715]
[1744524207123,3.7508,1608.7,1608.4,6.21715]
[1744524207336,0.7508,1608.7,1608.4,6.21715]
[1744524207629,0.7508,1608.7,1608.6,6.21658]
[1744524208202,0.7508,1608.9,1608.7,6.21603]
[1744524208533,0.7508,1608.9,1608.6,6.21658]
[1744524209300,0.7508,1608.9,1608.6,12.433]
[1744524210131,0.7508,1608.9,1608.7,6.21585]
[1744524210446,0.7508,1608.9,1608.8,6.21581]
[1744524211739,59.616,1609.0,1608.8,6.21581]
[1744524211910,0.7963,1609.1,1608.9,6.21526]
[1744524212227,0.7963,1609.1,1608.9,6.2152]
[1744524212701,0.7963,1609.1,1608.9,12.43039]
[1744524213837,0.01378612,1609.4,1609.3,6.21388]
[1744524214805,0.01378612,1609.4,1609.3,7.02398]
[1744524228749,0.01378612,1609.4,1609.2,6.21409]
[1744524229118,0.01378612,1609.4,1609.3,6.21388]
[1744524229414,0.01378612,1609.4,1609.2,6.21409]
[1744524229841,0.01378612,1609.4,1609.3,6.21388]
[1744524230638,0.01378612,1609.4,1609.2,12.42822]
[1744524231448,0.01378612,1609.4,1609.2,13.671042]
[1744524231627,0.01378612,1609.4,1609.2,7.456912]
[1744524231977,0.01378612,1609.4,1609.0,6.21497]
[1744524232141,7.01046,1609.3,1608.9,6.21531]
[1744524233623,7.01046,1609.3,1608.9,12.43053]
[1744524234356,7.01046,1609.3,1609.0,6.21503]
[1744524236467,0.7964,1609.3,1608.7,6.0283664]
[1744524236759,0.7964,1609.3,1609.1,6.21448]
[1744524237365,0.7964,1609.3,1609.0,6.21497]
[1744524238966,7.01031,1609.3,1609.0,6.21497]
[1744524239532,0.7964,1609.3,1609.0,6.21486]
[1744524240541,0.7964,1609.3,1608.8,6.81860664]
[1744524240542,7.01044,1609.3,1608.9,6.21529]
[1744524241571,7.01044,1609.3,1609.0,6.21501]
[1744524241755,8.33421361,1609.3,1609.0,6.21501]
[1744524242065,0.7964,1609.3,1609.0,6.21483]
[1744524242283,0.7964,1609.3,1609.1,6.21452]
[1744524244985,0.7964,1609.3,1609.0,6.21483]
[1744524245283,0.7964,1609.3,1609.0,12.42971]
[1744524245477,0.7964,1609.3,1609.0,6.21483]
[1744524246047,0.7964,1609.3,1609.1,6.2144]
[1744524246250,0.7964,1609.3,1609.1,12.42884]
[1744524246545,0.01378612,1609.4,1609.1,13.749664]
[1744524246778,6.22748612,1609.4,1609.0,6.21499]
[1744524246966,0.7968,1609.3,1609.0,6.21499]
[1744524247981,0.7968,1609.3,1609.0,12.42984]
[1744524248782,0.82818612,1609.4,1608.9,0.8121]
[1744524248981,0.01378612,1609.4,1609.2,6.21407]
[1744524249352,0.01378612,1609.4,1609.3,6.21388]
[1744524249550,0.01378612,1609.4,1609.2,6.21407]
[1744524251582,0.01378612,1609.4,1609.2,7.456935]
[1744524251752,0.01378612,1609.4,1609.2,13.670995]
[1744524251955,0.01378612,1609.4,1609.3,6.21388]
[1744524255357,0.7688,1609.3,1609.2,7.456925]
[1744524255558,0.7688,1609.3,1609.1,6.21461]
[1744524255879,6.98288,1609.3,1608.9,6.2154]
[1744524256063,13.197,1609.3,1608.9,7.51879766]
[1744524256263,6.98288,1609.3,1608.9,13.73403766]
[1744524258190,6.98288,1609.3,1609.0,6.21491]
[1744524258397,0.7688,1609.3,1609.0,0.8113]
[1744524258603,0.7688,1609.3,1609.1,6.2145]
[1744524258898,0.7688,1609.3,1609.0,6.21499]
[1744524259062,0.7688,1609.3,1608.9,7.51879766]
[1744524259063,6.9827,1609.3,1608.9,7.51879766]
[1744524259267,6.9827,1609.3,1608.8,7.62989664]
[1744524259268,0.7518,1609.1,1608.8,6.21576]
[1744524259469,6.96649,1609.1,1608.7,6.21613]
[1744524259801,6.21507,1609.0,1608.7,6.21613]
[1744524260180,0.7518,1608.9,1608.7,6.21613]
[1744524260379,0.7518,1608.9,1608.6,6.21657]
[1744524260599,6.21469,1609.1,1608.6,1.324477]
[1744524260600,0.7518,1609.1,1608.6,1.324477]
[1744524260797,0.7518,1609.1,1609.0,6.21504]
[1744524261701,0.7518,1609.1,1608.9,6.21532]
[1744524264806,0.7518,1609.1,1608.9,12.43056]
[1744524265107,0.7518,1609.1,1608.9,6.21524]
[1744524266007,0.7518,1609.1,1608.8,6.21576]
[1744524267811,8.284514,1609.1,1608.7,6.21615]
[1744524267986,14.499484,1609.1,1608.7,6.21615]
[1744524270920,8.284514,1609.1,1608.7,12.43218]
[1744524272415,6.21505,1609.0,1608.7,6.21603]
[1744524272716,0.8274,1608.8,1608.5,6.21693]
[1744524272903,7.04327,1608.8,1608.4,12.43449]
[1744524273423,0.7837,1608.7,1608.4,6.21714]
[1744524273791,7.00016,1608.7,1608.3,6.21769]
[1744524273998,6.21698,1608.5,1608.1,6.21834]
[1744524274295,6.21698,1608.5,1608.0,6.21888]
[1744524274296,7.00119,1608.4,1608.0,6.21888]
[1744524274486,13.21878,1608.4,1608.0,6.21888]
[1744524274686,7.00119,1608.4,1608.0,6.21888]
[1744524275084,6.21813,1608.2,1607.8,6.2195]
[1744524275290,7.00238,1608.1,1607.7,6.21977]
[1744524275492,7.00238,1608.1,1607.7,6.841747]
[1744524276220,0.55,1608.0,1607.7,6.841747]
[1744524276388,0.7837,1607.8,1607.5,6.22069]
[1744524277065,0.7837,1608.0,1607.3,7.87313095]
[1744524277226,0.7837,1608.0,1607.7,6.2199]
[1744524277526,0.7837,1608.0,1607.7,6.21982]
[1744524277820,0.7837,1608.0,1607.8,6.21935]
[1744524279434,0.7837,1608.0,1607.9,6.21929]
[1744524279727,8.07790342,1608.2,1607.9,12.43858]
[1744524280128,7.0589,1608.2,1607.9,12.43858]
[1744524280634,7.0589,1608.2,1608.0,6.21865]
[1744524280997,7.0589,1608.2,1607.9,6.21925]
[1744524281200,13.27703,1608.2,1607.9,6.21925]
[1744524282037,0.55,1608.1,1607.8,6.21967]
[1744524282423,13.27703,1608.2,1607.9,6.21928]
[1744524284909,7.0589,1608.2,1607.9,6.21928]
[1744524285114,7.0589,1608.2,1607.9,6.21913]
[1744524286637,7.0589,1608.2,1607.9,12.43821]
[1744524286941,7.0589,1608.2,1607.9,13.762781]
[1744524287642,7.0589,1608.2,1607.9,7.543651]
[1744524287939,7.0589,1608.2,1607.9,13.762811]
[1744524288442,7.0589,1608.2,1607.9,7.543651]
[1744524288751,13.27733,1608.2,1607.8,12.43918]
[1744524288920,13.27733,1608.2,1607.8,12.43904]
[1744524290346,6.76872,1608.1,1607.7,6.22005]
[1744524290524,7.00523,1608.0,1607.6,6.22026]
[1744524291128,13.22439,1608.0,1607.6,6.22026]
[1744524291321,6.21934,1607.9,1607.6,6.22026]
[1744524294747,7.55606,1607.8,1607.4,6.22109]
[1744524294929,7.55606,1607.8,1607.4,12.4421]
[1744524295741,3.7862,1608.0,1607.6,6.2201]
[1744524296051,0.55,1607.9,1607.6,6.2201]
[1744524296230,0.55,1607.9,1607.6,12.44032]
[1744524296846,0.55,1607.9,1607.6,6.2201]
[1744524297846,3.7862,1608.0,1607.7,6.2198]
[1744524298048,3.7862,1608.0,1607.7,12.43966]
[1744524298555,6.2199,1607.8,1607.4,6.221]
[1744524299143,0.7666,1607.6,1607.4,6.221]
[1744524303349,7.0922,1607.8,1607.3,6.99848]
[1744524303654,7.0922,1607.8,1607.5,12.4413]
[1744524303852,7.0922,1607.8,1607.5,6.22061]
[1744524304050,13.31211,1607.8,1607.4,6.22115]
[1744524304256,6.77023,1607.7,1607.3,6.22156]
[1744524304454,12.99055,1607.7,1607.3,6.924846]
[1744524305054,6.22046,1607.6,1607.3,6.924686]
[1744524305651,12.99049,1607.7,1607.3,6.924686]
[1744524305852,7.0922,1607.8,1607.3,0.703286]
[1744524306033,7.0922,1607.8,1607.5,6.22065]
[1744524306234,13.31189,1607.8,1607.4,6.22122]
[1744524306434,6.22021,1607.7,1607.4,6.22122]
[1744524308253,13.31189,1607.8,1607.4,12.44224]
[1744524308564,13.31189,1607.8,1607.4,6.22102]
[1744524309252,7.0922,1607.8,1607.5,6.22071]
[1744524309432,7.0922,1607.8,1607.6,12.44073]
[1744524309639,7.0922,1607.8,1607.6,6.22032]
[1744524311270,13.31194,1607.8,1607.5,6.22079]
[1744524312124,13.31194,1607.8,1607.4,13.145532]
[1744524312458,19.53183,1607.8,1607.4,6.924382]
[1744524312667,7.0922,1607.8,1607.5,6.9129982]
[1744524315059,13.31192,1607.8,1607.5,6.9129982]